fUSD/lending_fUSD_20250421
["ID","MTS","AMOUNT","RATE_DAILY","PERIOD"]
[358488849,1745206247397,-500.0,0.00064657,120]
[358488851,1745206247406,-500.0,0.00064657,120]
[358488853,1745206247415,-3439.08,0.00064657,2]
[358488855,1745206247425,-500.0,0.00064657,120]
[358488857,1745206247434,-500.0,0.00064657,120]
[358488859,1745206247444,-371.72985152,0.00064657,120]
[358488861,1745206247454,-500.0,0.00064657,120]
[358488863,1745206247463,-500.0,0.00064657,120]
[358488865,1745206247472,-500.0,0.00064657,120]
[358488867,1745206247482,-500.0,0.00064657,120]
[358488869,1745206247493,-500.0,0.00064657,120]
[358488871,1745206247504,-1438.39,0.00064657,120]
[358488873,1745206247514,-590.93630144,0.00064657,120]
[358488875,1745206247523,-294.60014665,0.00064657,118]
[358488877,1745206247533,-192.61273504,0.00064657,120]
[358488879,1745206247542,-631.4696118,0.00064657,120]
[358488881,1745206247551,-500.0,0.00064657,120]
[358488883,1745206247562,-500.0,0.00064657,120]
[358488884,1745206247571,-500.0,0.00064673,4]
[358488886,1745206247580,-962.79,0.000647,2]
[358488888,1745206247590,-1971.46,0.000647,2]
[358488890,1745206247599,-691.70985217,0.000648,120]
[358488892,1745206247608,-9767.04424442,0.0006489,5]
[358488894,1745206247618,-150.72168307,0.00064898,120]
[358488896,1745206247628,-3800.0,0.000649,23]
[358488898,1745206247637,-2000.0,0.000649,23]
[358488900,1745206247646,-4000.0,0.000649,23]
[358488902,1745206247656,-1400.0,0.000649,23]
[358488904,1745206247665,-1031.0,0.00065,120]
[358488906,1745206247675,-1574.96563437,0.00065,120]
[358488909,1745206247685,-214.39935321,0.00065,120]
[358488910,1745206247694,-252.45710336,0.00065,120]
[358488912,1745206247703,-200.0,0.00065,120]
[358488914,1745206247712,-207.4,0.00065,120]
[358488916,1745206247721,-215.0738,0.00065,120]
[358488918,1745206247730,-223.0315306,0.00065,120]
[358488920,1745206247742,-231.28369723,0.00065,120]
[358488922,1745206247752,-239.84119403,0.00065,120]
[358488924,1745206247761,-248.71531821,0.00065,120]
[358488926,1745206247771,-257.91778498,0.00065,120]
[358488928,1745206247781,-267.46074303,0.00065,120]
[358488930,1745206247790,-277.35679052,0.00065,120]
[358488932,1745206247799,-287.61899177,0.00065,120]
[358488934,1745206247809,-298.26089446,0.00065,120]
[358488936,1745206247820,-309.29654756,0.00065,120]
[358488938,1745206247830,-320.74051982,0.00065,120]
[358488940,1745206247839,-332.60791905,0.00065,120]
[358488942,1745206247849,-344.91441206,0.00065,120]
[358488944,1745206247859,-357.6762453,0.00065,120]
[358488946,1745206247868,-370.91026638,0.00065,120]
[358488948,1745206247877,-384.63394623,0.00065,120]
[358488950,1745206247886,-454.33573021,0.00065,120]
[358488952,1745206247896,-158.728919,0.00065063,60]
[358488954,1745206247905,-19534.0884888,0.00065084,5]
[358488956,1745206247915,-41120.7347106,0.00065094,5]
[358488958,1745206247924,-48835.2212221,0.00065094,5]
[358488960,1745206247934,-4811.52687206,0.00065095,30]
[358488962,1745206247944,-151.0,0.00065104,120]
[358488964,1745206247953,-88888.0,0.00065104,120]
[358488966,1745206247963,-150.0,0.00065109,30]
[358488968,1745206247972,-20560.3673553,0.00065142,5]
[358488970,1745206247981,-150.0,0.00065178,30]
[358488972,1745206247991,-150.0,0.00065192,120]
[358488974,1745206248000,-20560.3673553,0.00065193,5]
[358488976,1745206248010,-20560.3673553,0.00065195,5]
[358488978,1745206248019,-522.21,0.00065203,120]
[358488980,1745206248028,-994.36,0.00065203,120]
[358488982,1745206248038,-1864.78,0.00065203,120]
[358488984,1745206248047,-873.81,0.00065203,120]
[358488986,1745206248056,-702.1,0.00065203,120]
[358488988,1745206248065,-782.91,0.00065203,120]
[358488990,1745206248074,-593.53126621,0.00065203,120]
[358488991,1745206248083,-500.0,0.00065203,120]
[358488994,1745206248093,-500.0,0.00065203,120]
[358488996,1745206248103,-500.0,0.00065203,120]
[358488998,1745206248113,-500.0,0.00065203,12]
[358489000,1745206248122,-654.68,0.00065203,120]
[358489002,1745206248132,-1142.18,0.00065203,120]
[358489004,1745206248141,-641.45,0.00065203,120]
[358489005,1745206248151,-2229.31,0.00065203,7]
[358489007,1745206248160,-583.01943316,0.00065203,30]
[358489009,1745206248169,-500.0,0.00065203,120]
[358489011,1745206248179,-715.54,0.00065203,120]
[358489013,1745206248189,-579.28382361,0.00065203,120]
[358489015,1745206248198,-849.39,0.00065203,120]
[358489017,1745206248208,-500.0,0.00065203,120]
[358489019,1745206248217,-594.82,0.00065203,120]
[358489021,1745206248227,-1009.45,0.00065203,120]
[358489023,1745206248236,-510.01,0.00065203,120]
[358489025,1745206248246,-529.65,0.00065203,120]
[358489027,1745206248255,-560.16,0.00065203,120]
[358489029,1745206248265,-540.64,0.00065203,120]
[358489031,1745206248274,-674.91,0.00065203,120]
[358489033,1745206248284,-728.58,0.00065203,120]
[358489035,1745206248295,-500.0,0.00065203,120]
[358489037,1745206248304,-768.63,0.00065203,120]
[358489039,1745206248315,-807.87,0.00065203,120]
[358489041,1745206248324,-500.0,0.00065203,120]
[358489043,1745206248334,-564.14631837,0.00065203,120]
[358489045,1745206248343,-500.0,0.00065203,120]
[358489047,1745206248354,-1443.34,0.00065203,120]
[358489049,1745206248364,-1105.38,0.00065203,120]
[358489051,1745206248373,-500.0,0.00065204,120]
[358489054,1745206248383,-500.0,0.00065204,120]
[358489055,1745206248392,-500.0,0.00065204,120]
[358489057,1745206248402,-500.0,0.00065204,120]
[358489060,1745206248412,-897.9,0.00065204,120]
[358489061,1745206248421,-500.0,0.00065204,120]
[358489063,1745206248430,-500.0,0.00065204,120]
[358489065,1745206248439,-500.0,0.00065204,2]
[358489067,1745206248449,-621.94,0.00065204,120]
[358489069,1745206248459,-573.04658232,0.00065204,120]
[358489071,1745206248468,-530.42329762,0.00065204,120]
[358489073,1745206248477,-999.0,0.00065204,120]
[358489075,1745206248486,-677.48,0.00065204,120]
[358489077,1745206248495,-500.0,0.00065204,120]
[358489079,1745206248505,-500.0,0.00065204,120]
[358489081,1745206248514,-532.46612998,0.00065204,120]
[358489083,1745206248524,-734.71,0.00065204,120]
[358489085,1745206248533,-500.0,0.00065204,120]
[358489087,1745206248542,-500.0,0.00065204,120]
[358489089,1745206248552,-673.27,0.00065204,120]
[358489091,1745206248562,-500.0,0.00065204,14]
[358489093,1745206248572,-350.62635377,0.00065204,120]
[358489095,1745206248581,-500.0,0.00065204,120]
[358489097,1745206248591,-507.83935475,0.00065204,120]
[358489099,1745206248601,-500.0,0.00065204,120]
[358489101,1745206248611,-368.81310116,0.00065204,120]
[358489103,1745206248621,-500.0,0.00065204,120]
[358489105,1745206248630,-536.2460923,0.00065204,120]
[358489107,1745206248640,-500.0,0.00065204,120]
[358489109,1745206248649,-605.53862506,0.00065204,120]
[358489111,1745206248659,-536.92756005,0.00065204,120]
[358489113,1745206248669,-500.0,0.00065204,120]
[358489115,1745206248679,-500.0,0.00065205,120]
[358489117,1745206248689,-1834.58,0.00065205,120]
[358489119,1745206248699,-620.11,0.00065205,120]
[358489121,1745206248708,-500.0,0.00065205,120]
[358489123,1745206248718,-500.0,0.00065205,120]
[358489125,1745206248727,-500.0,0.00065205,120]
[358489127,1745206248736,-500.0,0.00065205,120]
[358489129,1745206248750,-500.0,0.00065205,120]
[358489131,1745206248760,-500.0,0.00065205,120]
[358489133,1745206248770,-510.01450768,0.00065205,120]
[358489135,1745206248780,-373.61822784,0.00065205,120]
[358489137,1745206248789,-600.98,0.00065205,120]
[358489139,1745206248798,-500.0,0.00065205,120]
[358489141,1745206248808,-1604.29,0.00065205,120]
[358489143,1745206248821,-500.0,0.00065205,120]
[358489145,1745206248830,-500.0,0.00065205,120]
[358489147,1745206248840,-1033.25,0.00065205,120]
[358489149,1745206248851,-2091.49,0.00065205,120]
[358489151,1745206248861,-500.0,0.00065205,8]
[358489165,1745206248985,-1928.23,0.00065205,120]
[358489167,1745206248996,-159.69912674,0.00065205,120]
[358489169,1745206249006,-500.0,0.00065205,120]
[358489171,1745206249016,-3439.08,0.00065205,2]
[358489173,1745206249027,-500.0,0.00065205,120]
[358489175,1745206249036,-500.0,0.00065205,120]
[358489177,1745206249046,-500.0,0.00065205,120]
[358489179,1745206249056,-500.0,0.00065205,120]
[358489181,1745206249066,-460.35569323,0.00065205,120]
[358489183,1745206249075,-500.0,0.00065205,120]
[358489185,1745206249084,-500.0,0.00065205,120]
[358489187,1745206249094,-1438.39,0.00065205,120]
[358489189,1745206249103,-500.0,0.00065205,120]
[358489191,1745206249112,-500.0,0.00065205,120]
[358489193,1745206249123,-282.69724388,0.00065251,30]
[358489195,1745206249132,-2361.95253337,0.000655,120]
[358489197,1745206249142,-20560.3673553,0.0006552,5]
[358489199,1745206249151,-20560.3673553,0.0006553,5]
[358489201,1745206249160,-36170.9236,0.0006554,2]
[358489203,1745206249170,-170.3025,0.0006555,90]
[358489205,1745206249180,-331.876103,0.000656,62]
[358489207,1745206249190,-20560.3673553,0.00065723,5]
[358489209,1745206249201,-20560.3673553,0.00065733,5]
[358489211,1745206249211,-20560.3673553,0.00065741,5]
[358489213,1745206249221,-20560.3673553,0.00065743,5]
[358489215,1745206249230,-522.21,0.00065751,120]
[358489217,1745206249240,-994.36,0.00065751,120]
[358489219,1745206249249,-1864.78,0.00065751,120]
[358489221,1745206249258,-873.81,0.00065751,120]
[358489223,1745206249268,-702.1,0.00065751,120]
[358489226,1745206249278,-782.91,0.00065751,120]
[358489227,1745206249287,-500.0,0.00065751,120]
[358489229,1745206249297,-500.0,0.00065751,120]
[358489231,1745206249308,-500.0,0.00065751,120]
[358489233,1745206249318,-500.0,0.00065751,12]
[358489235,1745206249327,-654.68,0.00065751,120]
[358489237,1745206249336,-1142.18,0.00065751,120]
[358489239,1745206249346,-641.45,0.00065751,120]
[358489241,1745206249355,-2229.31,0.00065751,7]
[358489243,1745206249364,-500.0,0.00065751,120]
[358489245,1745206249374,-715.54,0.00065751,120]
[358489247,1745206249383,-849.39,0.00065751,120]
[358489249,1745206249392,-461.30633276,0.00065751,120]
[358489251,1745206249401,-594.82,0.00065751,120]
[358489253,1745206249411,-1009.45,0.00065751,120]
[358489255,1745206249420,-510.01,0.00065751,120]
[358489257,1745206249429,-529.65,0.00065751,120]
[358489259,1745206249439,-560.16,0.00065751,120]
[358489261,1745206249449,-540.64,0.00065751,120]
[358489263,1745206249459,-674.91,0.00065751,120]
[358489265,1745206249471,-728.58,0.00065751,120]
[358489267,1745206249480,-500.0,0.00065751,120]
[358489269,1745206249489,-768.63,0.00065751,120]
[358489271,1745206249499,-807.87,0.00065751,120]
[358489273,1745206249508,-500.0,0.00065751,120]
[358489275,1745206249517,-500.0,0.00065751,120]
[358489277,1745206249526,-1443.34,0.00065751,120]
[358489279,1745206249536,-1105.38,0.00065751,120]
[358489281,1745206249545,-500.0,0.00065752,120]
[358489283,1745206249554,-500.0,0.00065752,120]
[358489284,1745206249564,-417.83836655,0.00065752,120]
[358489287,1745206249574,-897.9,0.00065752,120]
[358489288,1745206249583,-500.0,0.00065752,120]
[358489290,1745206249592,-500.0,0.00065752,120]
[358489292,1745206249602,-500.0,0.00065752,2]
[358489294,1745206249611,-621.94,0.00065752,120]
[358489296,1745206249620,-999.0,0.00065752,120]
[358489298,1745206249630,-677.48,0.00065752,120]
[358489300,1745206249639,-500.0,0.00065752,120]
[358489302,1745206249648,-544.10940841,0.00065752,120]
[358489304,1745206249658,-734.71,0.00065752,120]
[358489306,1745206249667,-500.0,0.00065752,120]
[358489308,1745206249676,-500.0,0.00065752,120]
[358489310,1745206249686,-673.27,0.00065752,120]
[358489312,1745206249695,-500.0,0.00065752,14]
[358489314,1745206249705,-500.0,0.00065752,120]
[358489316,1745206249715,-500.0,0.00065752,120]
[358489318,1745206249725,-500.0,0.00065752,120]
[358489320,1745206249736,-500.0,0.00065752,120]
[358489322,1745206249748,-500.0,0.00065752,120]
[358489324,1745206249758,-500.0,0.00065753,120]
[358489326,1745206249767,-1834.58,0.00065753,120]
[358489328,1745206249776,-620.11,0.00065753,120]
[358489330,1745206249786,-615.73623825,0.00065753,120]
[358489332,1745206249796,-500.0,0.00065753,120]
[358489334,1745206249805,-500.0,0.00065753,120]
[358489336,1745206249815,-266.96465056,0.00065753,120]
[358489338,1745206249824,-500.0,0.00065753,120]
[358489340,1745206249834,-500.0,0.00065753,120]
[358489342,1745206249843,-600.98,0.00065753,120]
[358489344,1745206249852,-225.29673702,0.00065753,120]
[358489346,1745206249861,-1604.29,0.00065753,120]
[358489348,1745206249871,-522.66628055,0.00065753,120]
[358489350,1745206249880,-500.0,0.00065753,120]
[358489351,1745206249888,-1033.25,0.00065753,120]
[358489352,1745206249898,-2091.49,0.00065753,120]
[358489353,1745206249907,-500.0,0.00065753,8]
[358489354,1745206249917,-1928.23,0.00065753,120]
[358489355,1745206249926,-500.0,0.00065753,120]
[358489356,1745206249935,-3439.08,0.00065753,2]
[358489357,1745206249944,-500.0,0.00065753,120]
[358489358,1745206249953,-500.0,0.00065753,120]
[358489359,1745206249962,-151.0,0.00065753,120]
[358489360,1745206249972,-155.47456227,0.00065753,120]
[358489361,1745206249981,-500.0,0.00065753,120]
[358489362,1745206249991,-387.70729828,0.00065753,120]
[358489363,1745206250000,-500.0,0.00065753,120]
[358489365,1745206250010,-1438.39,0.00065753,120]
[358489367,1745206250020,-500.0,0.00065753,120]
[358489369,1745206250029,-500.0,0.00065753,120]
[358489371,1745206250038,-600.0,0.00065753,120]
[358489373,1745206250047,-600.0,0.00065753,120]
[358489375,1745206250057,-600.0,0.00065753,120]
[358489377,1745206250067,-600.0,0.00065753,120]
[358489379,1745206250076,-600.0,0.00065753,120]
[358489381,1745206250085,-600.0,0.00065753,120]
[358489383,1745206250094,-600.0,0.00065753,120]
[358489385,1745206250103,-600.0,0.00065753,120]
[358489387,1745206250112,-600.0,0.00065753,120]
[358489389,1745206250121,-600.0,0.00065753,120]
[358489391,1745206250131,-600.0,0.00065753,120]
[358489393,1745206250139,-455.48888246,0.00065753,120]
[358489395,1745206250148,-649.0,0.000658,30]
[358489397,1745206250158,-505.948551,0.00065802,120]
[358489399,1745206250168,-2000.0,0.00065802,120]
[358489401,1745206250177,-206.047468,0.00065802,120]
[358489403,1745206250186,-7700.0,0.000659,24]
[358489405,1745206250196,-1900.0,0.000659,24]
[358489407,1745206250205,-150.0,0.00065969,60]
[358489409,1745206250214,-1000.0,0.00066,35]
[358489411,1745206250223,-200.0,0.00066,120]
[358489413,1745206250233,-240.24761151,0.00066094,60]
[358489415,1745206250242,-150.0,0.00066109,60]
[358489417,1745206250251,-150.0,0.00066131,60]
[358489419,1745206250260,-150.0,0.00066176,60]
[358489421,1745206250270,-150.0,0.00066178,60]
[358489423,1745206250278,-150.0,0.0006618,60]
[358489425,1745206250288,-150.0,0.00066193,60]
[358489426,1745206250297,-150.0,0.00066193,60]
[358489429,1745206250306,-150.0,0.00066195,60]
[358489431,1745206250316,-166.75293362,0.00066199,47]
[358489432,1745206250325,-150.0,0.00066222,60]
[358489434,1745206250334,-150.0,0.0006623,60]
[358489436,1745206250343,-150.0,0.00066239,60]
[358489438,1745206250352,-150.0,0.00066252,60]
[358489440,1745206250362,-20560.3673553,0.00066258,5]
[358489442,1745206250371,-150.0,0.00066264,60]
[358489444,1745206250380,-150.0,0.00066267,60]
[358489446,1745206250389,-150.0,0.00066268,60]
[358489448,1745206250399,-41120.7347106,0.00066269,5]
[358489450,1745206250408,-150.0,0.00066269,60]
[358489452,1745206250417,-15421.80899909,0.00066269,5]
[358489466,1745206250532,-3229.23732841,0.00066269,5]
[358489468,1745206250545,-1909.3210278,0.00066269,5]
[358489470,1745206250554,-150.0,0.00066271,60]
[358489472,1745206250565,-150.0,0.00066274,60]
[358489474,1745206250574,-500.0,0.00066278,60]
[358489476,1745206250583,-849.39,0.00066278,120]
[358489478,1745206250593,-300.0,0.00066278,30]
[358489480,1745206250601,-300.0,0.00066279,30]
[358489482,1745206250611,-151.0,0.0006628,120]
[358489484,1745206250620,-151.0,0.0006628,120]
[358489486,1745206250629,-315.48747461,0.00066288,30]
[358489488,1745206250638,-151.0,0.00066289,120]
[358489490,1745206250647,-188.651661,0.00066289,120]
[358489492,1745206250656,-158.004107,0.00066289,120]
[358489494,1745206250666,-151.0,0.00066289,120]
[358489496,1745206250675,-154.558485,0.00066289,120]
[358489498,1745206250684,-204.876667,0.00066289,120]
[358489499,1745206250694,-151.0,0.00066289,120]
[358489501,1745206250703,-151.0,0.0006629,120]
[358489503,1745206250712,-151.0,0.0006629,120]
[358489505,1745206250721,-150.0,0.00066296,60]
[358489508,1745206250731,-522.21,0.00066299,120]
[358489510,1745206250745,-610.08023092,0.00066299,120]
[358489512,1745206250757,-384.27976908,0.00066299,120]
[358489514,1745206250766,-295.41484711,0.00066299,120]
[358489516,1745206250779,-274.22250558,0.00066299,120]
[358489518,1745206250790,-1295.14264731,0.00066299,120]
[358489520,1745206250799,-873.81,0.00066299,120]
[358489522,1745206250808,-702.1,0.00066299,120]
[358489524,1745206250820,-782.91,0.00066299,120]
[358489526,1745206250829,-500.0,0.00066299,120]
[358489528,1745206250839,-500.0,0.00066299,120]
[358489530,1745206250849,-1328.756703,0.00066299,4]
[358489532,1745206250859,-378.17931156,0.00066299,120]
[358489534,1745206250868,-500.0,0.00066299,12]
[358489536,1745206250878,-654.68,0.00066299,120]
[358489539,1745206250888,-1142.18,0.00066299,120]
[358489540,1745206250897,-641.45,0.00066299,120]
[358489542,1745206250906,-2229.31,0.00066299,7]
[358489544,1745206250916,-561.89761186,0.00066299,120]
[358489546,1745206250925,-715.54,0.00066299,120]
[358489548,1745206250934,-37950.4146743,0.00066299,4]
[358489550,1745206250944,-594.82,0.00066299,120]
[358489552,1745206250953,-1009.45,0.00066299,120]
[358489554,1745206250962,-510.01,0.00066299,120]
[358489556,1745206250972,-529.65,0.00066299,120]
[358489558,1745206250981,-560.16,0.00066299,120]
[358489561,1745206250991,-540.64,0.00066299,120]
[358489563,1745206251001,-674.91,0.00066299,120]
[358489565,1745206251010,-728.58,0.00066299,120]
[358489567,1745206251019,-500.0,0.00066299,120]
[358489569,1745206251028,-768.63,0.00066299,120]
[358489571,1745206251038,-807.87,0.00066299,120]
[358489573,1745206251048,-500.0,0.00066299,120]
[358489575,1745206251057,-500.0,0.00066299,120]
[358489577,1745206251067,-1443.34,0.00066299,120]
[358489579,1745206251076,-1105.38,0.00066299,120]
[358489581,1745206251085,-200.0,0.000663,120]
[358489583,1745206251095,-154.484398,0.000663,120]
[358489585,1745206251105,-500.0,0.000663,120]
[358489587,1745206251113,-500.0,0.000663,120]
[358489589,1745206251122,-897.9,0.000663,120]
[358489591,1745206251131,-500.0,0.000663,120]
[358489593,1745206251140,-500.0,0.000663,120]
[358489605,1745206251149,-500.0,0.000663,2]
[358489607,1745206251262,-621.94,0.000663,120]
[358489609,1745206251271,-999.0,0.000663,120]
[358489611,1745206251281,-677.48,0.000663,120]
[358489613,1745206251291,-500.0,0.000663,120]
[358489615,1745206251300,-734.71,0.000663,120]
[358489617,1745206251309,-500.0,0.000663,120]
[358489619,1745206251319,-673.27,0.000663,120]
[358489621,1745206251329,-500.0,0.000663,14]
[358489623,1745206251339,-849.39,0.000663,120]
[358489625,1745206251348,-500.0,0.000663,120]
[358489627,1745206251358,-500.0,0.000663,120]
[358489629,1745206251367,-500.0,0.000663,120]
[358489631,1745206251377,-500.0,0.000663,120]
[358489633,1745206251387,-500.0,0.000663,120]
[358489636,1745206251396,-505.75771246,0.00066301,120]
[358489638,1745206251406,-2213.85438655,0.00066301,120]
[358489640,1745206251415,-200.0,0.00066301,30]
[358489642,1745206251424,-1834.58,0.00066301,120]
[358489644,1745206251434,-620.11,0.00066301,120]
[358489646,1745206251443,-296.33396925,0.00066301,120]
[358489648,1745206251452,-500.0,0.00066301,120]
[358489650,1745206251461,-465.44106903,0.00066301,120]
[358489652,1745206251471,-500.0,0.00066301,120]
[358489654,1745206251480,-600.98,0.00066301,120]
[358489656,1745206251489,-1604.29,0.00066301,120]
[358489658,1745206251498,-500.0,0.00066301,120]
[358489660,1745206251507,-931.95151005,0.00066301,120]
[358489662,1745206251520,-101.29848995,0.00066301,120]
[358489664,1745206251530,-610.19819395,0.00066301,120]
[358489666,1745206251541,-1481.29180605,0.00066301,120]
[358489668,1745206251551,-500.0,0.00066301,8]
[358489670,1745206251561,-1928.23,0.00066301,120]
[358489673,1745206251570,-500.0,0.00066301,120]
[358489675,1745206251580,-3439.08,0.00066301,2]
[358489677,1745206251590,-500.0,0.00066301,120]
[358489679,1745206251600,-226.80742949,0.00066301,120]
[358489681,1745206251609,-500.0,0.00066301,120]
[358489683,1745206251619,-458.14052005,0.00066301,120]
[358489685,1745206251628,-1438.39,0.00066301,120]
[358489687,1745206251638,-241.86770673,0.00066301,120]
[358489689,1745206251647,-225.52014247,0.00066301,120]
[358489691,1745206251656,-3300.3554856,0.00066321,4]
[358489693,1745206251666,-166.66,0.00066367,2]
[358489695,1745206251675,-158.728919,0.000664,2]
[358489697,1745206251685,-241.30870768,0.00066576,120]
[358489699,1745206251694,-150.0,0.00066576,120]
[358489701,1745206251704,-150.0,0.00066576,120]
[358489703,1745206251713,-150.0,0.00066576,120]
[358489705,1745206251722,-150.0,0.00066576,120]
[358489707,1745206251731,-150.0,0.00066576,120]
[358489709,1745206251745,-150.0,0.00066576,120]
[358489711,1745206251753,-150.0,0.00066576,120]
[358489713,1745206251763,-151.0,0.00066615,120]
[358489715,1745206251773,-849.39,0.00066624,120]
[358489717,1745206251783,-150.0,0.00066624,120]
[358489719,1745206251793,-12591.14647171,0.00066625,120]
[358489721,1745206251804,-474.54395273,0.00066625,120]
[358489723,1745206251816,-1286.66628758,0.00066625,120]
[358489725,1745206251831,-628.0812623,0.00066625,120]
[358489727,1745206251842,-363.50002513,0.00066625,120]
[358489729,1745206251853,-1274.22848703,0.00066625,120]
[358489731,1745206251864,-759.41383031,0.00066625,120]
[358489733,1745206251874,-776.6,0.00066625,120]
[358489739,1745206251923,-631.56647807,0.00048309,2]
[358489741,1745206251934,-500.0,0.00063013,120]
[358489743,1745206251943,-500.0,0.00063013,120]
[358489745,1745206251952,-500.0,0.00063559,120]
[358489747,1745206251961,-500.0,0.00063561,120]
[358489749,1745206251970,-500.0,0.00064107,120]
[358489751,1745206251979,-3641.73868321,0.00066625,120]
[358489753,1745206251988,-6989.55797188,0.00066625,120]
[358489764,1745206252090,-0.008169,0.00066625,120]
[358489778,1745206252217,-244.33491417,0.00062704,120]
[358489780,1745206252226,-501.62396758,0.00063013,2]
[358489782,1745206252235,-500.0,0.00063013,120]
[358489784,1745206252246,-500.0,0.00063013,120]
[358489786,1745206252255,-500.0,0.00063013,120]
[358489788,1745206252265,-500.0,0.00063561,120]
[358489790,1745206252274,-500.0,0.00063561,120]
[358489791,1745206252283,-500.0,0.00064655,120]
[358489792,1745206252292,-9967.31818991,0.00066625,120]
[358489832,1745206252812,-403.1041437,0.00063013,120]
[358489871,1745206253182,-177.04626765,0.000329,30]
[358489873,1745206253192,-3546.8692856,0.00062978,28]
[358489875,1745206253202,-96.8958563,0.00063013,120]
[358489877,1745206253212,-500.0,0.00063013,120]
[358489879,1745206253221,-234.17191906,0.00063013,2]
[358489882,1745206253233,-265.82808094,0.00063013,2]
[358489884,1745206253242,-500.0,0.00063013,120]
[358489886,1745206253252,-500.0,0.00063559,120]
[358489887,1745206253261,-203.10459811,0.00063561,120]
[358489889,1745206253270,-500.0,0.00063561,120]
[358489891,1745206253279,-500.0,0.00063561,120]
[358489893,1745206253288,-500.0,0.00064107,120]
[358489895,1745206253297,-347.92926721,0.00064109,120]
[358489898,1745206253310,-152.07073279,0.00064109,120]
[358489900,1745206253319,-500.0,0.00064109,120]
[358489902,1745206253329,-500.0,0.00064655,120]
[358489904,1745206253338,-500.0,0.00064657,120]
[358489906,1745206253347,-500.0,0.00064657,120]
[358489908,1745206253357,-500.0,0.00065205,120]
[358489910,1745206253366,-439.9541229,0.00065205,120]
[358489917,1745206253425,-15.8158771,0.00065205,120]
[358489919,1745206253436,-500.0,0.00065753,120]
[358489921,1745206253446,-500.0,0.00066301,120]
[358489923,1745206253455,-4839.03566921,0.00066625,120]
[358489925,1745206253465,-2884.01189835,0.00066625,120]
[358490527,1745206458788,774.67466802,0.0002488,7]
[358490533,1745207360371,1710.76,0.000305,30]
[358490539,1745207431874,-5612.01424383,0.0003718,2]
[358490540,1745207431884,-320.92960795,0.0003728,2]
[358490541,1745207431893,-150.0,0.0003748,117]
[358490542,1745207431903,-217.44587564,0.000377,2]
[358490543,1745207431912,-215.46706823,0.000379,14]
[358490544,1745207431922,-1433.27087,0.0004033,2]
[358490545,1745207431931,-150.0,0.00040533,117]
[358490546,1745207431941,-150.0,0.00040986,117]
[358490547,1745207431950,-150.0,0.00040999,117]
[358490548,1745207431960,-550.0,0.0004198,5]
[358490549,1745207431969,-150.99,0.0004198,30]
[358490550,1745207431979,-387.82,0.0004198,2]
[358490551,1745207431988,-3341.19467527,0.0004198,2]
[358490552,1745207432000,-613.56499562,0.0004198,2]
[358490553,1745207432018,-297.02032911,0.0004198,2]
[358490554,1745207432028,-9999.99,0.0004198,2]
[358490555,1745207432038,-550.0,0.00041981,5]
[358490556,1745207432047,-306.0,0.00041981,5]
[358490557,1745207432057,-1396.87437001,0.00041982,2]
[358490558,1745207432068,-1795.56435919,0.00041982,2]
[358490559,1745207432077,-4304.43564071,0.00041982,30]